[Event "Titled Tuesday Blitz June 1 2021"]
[White "Ibrahimli, Murad"]
[Black "Budiarti, Farah Yumna"]
[WhiteFideId "13410229"]
[BlackFideId "7107331"]
[WhiteElo "2109"]
[BlackElo "2528"]
[Result "1-0"]
[Round "04"]
[TimeControl "180+1"]
[Date "2021.06.01"]
[WhiteClock "0:01:34"]
[BlackClock "0:00:01"]

1. e4 {[%clk 0:03:00]}  c6 {[%clk 0:03:00]} 2. d4 {[%clk 0:03:00]}  d5 {[%clk 0:03:01]} 3. e5 {[%clk 0:03:00]}  c5 {[%clk 0:02:59]} 4. dxc5 {[%clk 0:03:00]}  Nc6 {[%clk 0:02:58]} 5. Nf3 {[%clk 0:03:00]}  Bg4 {[%clk 0:02:58]} 6. Bb5 {[%clk 0:02:58]}  e6 {[%clk 0:02:55]} 7. Be3 {[%clk 0:02:56]}  Ne7 {[%clk 0:02:32]} 8. c3 {[%clk 0:02:51]}  a6 {[%clk 0:01:41]} 9. Ba4 {[%clk 0:02:48]}  Qc7 {[%clk 0:01:30]} 10. Nbd2 {[%clk 0:02:39]}  Ng6 {[%clk 0:01:28]} 11. h3 {[%clk 0:02:29]}  Bxf3 {[%clk 0:01:25]} 12. Nxf3 {[%clk 0:02:29]}  Nxe5 {[%clk 0:01:26]} 13. Nxe5 {[%clk 0:02:27]}  Qxe5 {[%clk 0:01:27]} 14. O-O {[%clk 0:02:28]}  Be7 {[%clk 0:01:23]} 15. Bd4 {[%clk 0:02:26]}  Qc7 {[%clk 0:01:19]} 16. b4 {[%clk 0:02:19]}  Bf6 {[%clk 0:01:18]} 17. Re1 {[%clk 0:02:04]}  O-O-O {[%clk 0:01:10]} 18. Bxc6 {[%clk 0:01:59]}  Qxc6 {[%clk 0:01:06]} 19. a4 {[%clk 0:01:59]}  Rhe8 {[%clk 0:00:58]} 20. f4 {[%clk 0:01:58]}  Qc7 {[%clk 0:00:45]} 21. Re5 {[%clk 0:01:46]}  Bxe5 {[%clk 0:00:45]} 22. fxe5 {[%clk 0:01:46]}  f5 {[%clk 0:00:25]} 23. b5 {[%clk 0:01:44]}  Kd7 {[%clk 0:00:25]} 24. Qh5 {[%clk 0:01:40]}  Ke7 {[%clk 0:00:23]} 25. Rf1 {[%clk 0:01:36]}  Kf8 {[%clk 0:00:02]} 26. Qxh7 {[%clk 0:01:33]}  Qf7 {[%clk 0:00:01]} 27. c6 {[%clk 0:01:34]} 1-0


[Site "https://www.chess.com"]

[Event "Titled Tuesday Blitz June 1 2021"]
[White "Jary, Sergey"]
[Black "Jarovinsky, Alexey"]
[WhiteFideId "14110350"]
[BlackFideId "14115131"]
[WhiteElo "2260"]
[BlackElo "2446"]
[Result "1/2-1/2"]
[Round "04"]
[TimeControl "180+1"]
[Date "2021.06.01"]
[WhiteClock "0:01:08"]
[BlackClock "0:00:03"]

1. Nf3 {[%clk 0:02:32]}  d5 {[%clk 0:02:58]} 2. d4 {[%clk 0:02:32]}  Bg4 {[%clk 0:02:53]} 3. g3 {[%clk 0:02:33]}  Nd7 {[%clk 0:02:51]} 4. Bg2 {[%clk 0:02:34]}  e6 {[%clk 0:02:43]} 5. O-O {[%clk 0:02:35]}  Ngf6 {[%clk 0:02:38]} 6. Nbd2 {[%clk 0:02:35]}  Bd6 {[%clk 0:02:37]} 7. c4 {[%clk 0:02:36]}  c6 {[%clk 0:02:35]} 8. c5 {[%clk 0:02:37]}  Bc7 {[%clk 0:02:34]} 9. b4 {[%clk 0:02:37]}  e5 {[%clk 0:02:31]} 10. dxe5 {[%clk 0:02:36]}  Nxe5 {[%clk 0:02:30]} 11. Bb2 {[%clk 0:02:35]}  Qe7 {[%clk 0:02:28]} 12. Nxe5 {[%clk 0:02:33]}  Bxe5 {[%clk 0:02:27]} 13. Bxe5 {[%clk 0:02:33]}  Qxe5 {[%clk 0:02:28]} 14. Nf3 {[%clk 0:02:34]}  Bxf3 {[%clk 0:02:07]} 15. Bxf3 {[%clk 0:02:33]}  h5 {[%clk 0:01:59]} 16. e3 {[%clk 0:02:24]}  h4 {[%clk 0:01:46]} 17. Qd4 {[%clk 0:02:23]}  Qxd4 {[%clk 0:01:36]} 18. exd4 {[%clk 0:02:22]}  hxg3 {[%clk 0:01:08]} 19. fxg3 {[%clk 0:02:19]}  Kd7 {[%clk 0:00:55]} 20. Rfe1 {[%clk 0:02:18]}  Rhe8 {[%clk 0:00:46]} 21. a4 {[%clk 0:02:17]}  Rxe1+ {[%clk 0:00:41]} 22. Rxe1 {[%clk 0:02:16]}  a5 {[%clk 0:00:42]} 23. b5 {[%clk 0:02:16]}  cxb5 {[%clk 0:00:42]} 24. axb5 {[%clk 0:02:16]}  a4 {[%clk 0:00:42]} 25. Ra1 {[%clk 0:02:15]}  a3 {[%clk 0:00:41]} 26. Ra2 {[%clk 0:02:14]}  Ra4 {[%clk 0:00:40]} 27. Kf2 {[%clk 0:02:11]}  Rxd4 {[%clk 0:00:15]} 28. Rxa3 {[%clk 0:02:11]}  Rb4 {[%clk 0:00:10]} 29. c6+ {[%clk 0:02:08]}  bxc6 {[%clk 0:00:10]} 30. Ra7+ {[%clk 0:02:08]}  Ke6 {[%clk 0:00:09]} 31. bxc6 {[%clk 0:02:07]}  Rc4 {[%clk 0:00:09]} 32. c7 {[%clk 0:02:04]}  Ne8 {[%clk 0:00:07]} 33. Ra6+ {[%clk 0:01:51]}  Ke7 {[%clk 0:00:05]} 34. Bxd5 {[%clk 0:01:49]}  Rxc7 {[%clk 0:00:06]} 35. Ra2 {[%clk 0:01:46]}  Nf6 {[%clk 0:00:06]} 36. Re2+ {[%clk 0:01:45]}  Kf8 {[%clk 0:00:06]} 37. Bf3 {[%clk 0:01:45]}  g6 {[%clk 0:00:06]} 38. h3 {[%clk 0:01:45]}  Kg7 {[%clk 0:00:06]} 39. h4 {[%clk 0:01:44]}  Ng8 {[%clk 0:00:06]} 40. Bg4 {[%clk 0:01:42]}  Ne7 {[%clk 0:00:05]} 41. Rd2 {[%clk 0:01:41]}  Rc5 {[%clk 0:00:04]} 42. Rd7 {[%clk 0:01:39]}  Re5 {[%clk 0:00:04]} 43. Be2 {[%clk 0:01:34]}  Nf5 {[%clk 0:00:03]} 44. Bc4 {[%clk 0:01:31]}  Re7 {[%clk 0:00:03]} 45. Rxe7 {[%clk 0:01:27]}  Nxe7 {[%clk 0:00:04]} 46. g4 {[%clk 0:01:27]}  f6 {[%clk 0:00:04]} 47. Ke3 {[%clk 0:01:25]}  Nc6 {[%clk 0:00:03]} 48. g5 {[%clk 0:01:20]}  Ne5 {[%clk 0:00:03]} 49. gxf6+ {[%clk 0:01:18]}  Kxf6 {[%clk 0:00:04]} 50. Ba2 {[%clk 0:01:18]}  Ng4+ {[%clk 0:00:03]} 51. Kf4 {[%clk 0:01:17]}  Nh6 {[%clk 0:00:04]} 52. Bb1 {[%clk 0:01:17]}  Nf7 {[%clk 0:00:04]} 53. Be4 {[%clk 0:01:16]}  Nh6 {[%clk 0:00:03]} 54. Bc2 {[%clk 0:01:14]}  Kg7 {[%clk 0:00:03]} 55. Be4 {[%clk 0:01:11]}  Nf7 {[%clk 0:00:03]} 56. Bd5 {[%clk 0:01:11]}  Nh8 {[%clk 0:00:02]} 57. Kg5 {[%clk 0:01:09]}  Nf7+ {[%clk 0:00:02]} 58. Bxf7 {[%clk 0:01:09]}  Kxf7 {[%clk 0:00:03]} 59. Kh6 {[%clk 0:01:09]}  Kf6 {[%clk 0:00:03]} 60. Kh7 {[%clk 0:01:08]}  g5 {[%clk 0:00:03]} 61. hxg5+ {[%clk 0:01:08]}  Kxg5 {[%clk 0:00:03]} 1/2-1/2


[Site "https://www.chess.com"]

[Event "Titled Tuesday Blitz June 1 2021"]
[White "Kamsky, Gata"]
[Black "Nevednichy, Vladislav"]
[WhiteFideId "2000024"]
[BlackFideId "1205730"]
[WhiteElo "2644"]
[BlackElo "2366"]
[Result "1/2-1/2"]
[Round "04"]
[TimeControl "180+1"]
[Date "2021.06.01"]
[WhiteClock "0:00:10"]
[BlackClock "0:00:17"]

1. d4 {[%clk 0:03:00]}  Nf6 {[%clk 0:02:59]} 2. Nf3 {[%clk 0:03:00]}  d5 {[%clk 0:02:57]} 3. Bf4 {[%clk 0:02:59]}  e6 {[%clk 0:02:54]} 4. e3 {[%clk 0:02:59]}  Bd6 {[%clk 0:02:50]} 5. Bg3 {[%clk 0:02:57]}  O-O {[%clk 0:02:49]} 6. c4 {[%clk 0:02:57]}  c5 {[%clk 0:02:41]} 7. cxd5 {[%clk 0:02:51]}  exd5 {[%clk 0:02:36]} 8. Bxd6 {[%clk 0:02:49]}  Qxd6 {[%clk 0:02:36]} 9. dxc5 {[%clk 0:02:50]}  Qxc5 {[%clk 0:02:35]} 10. Nc3 {[%clk 0:02:49]}  Bg4 {[%clk 0:02:33]} 11. Be2 {[%clk 0:02:48]}  Nc6 {[%clk 0:02:28]} 12. O-O {[%clk 0:02:48]}  Rad8 {[%clk 0:02:10]} 13. Rc1 {[%clk 0:02:47]}  Bxf3 {[%clk 0:01:56]} 14. Bxf3 {[%clk 0:02:47]}  d4 {[%clk 0:01:48]} 15. exd4 {[%clk 0:01:42]}  Nxd4 {[%clk 0:01:39]} 16. Ne4 {[%clk 0:01:00]}  Qb6 {[%clk 0:01:37]} 17. Nxf6+ {[%clk 0:00:59]}  Qxf6 {[%clk 0:01:01]} 18. Rc3 {[%clk 0:00:29]}  b5 {[%clk 0:00:53]} 19. a3 {[%clk 0:00:25]}  Rfe8 {[%clk 0:00:45]} 20. Qc1 {[%clk 0:00:22]}  a5 {[%clk 0:00:42]} 21. Kh1 {[%clk 0:00:21]}  b4 {[%clk 0:00:41]} 22. axb4 {[%clk 0:00:21]}  axb4 {[%clk 0:00:41]} 23. Rd3 {[%clk 0:00:21]}  Nxf3 {[%clk 0:00:21]} 24. Rxf3 {[%clk 0:00:20]}  Qd4 {[%clk 0:00:21]} 25. h3 {[%clk 0:00:18]}  h6 {[%clk 0:00:19]} 26. b3 {[%clk 0:00:18]}  Re6 {[%clk 0:00:18]} 27. Re1 {[%clk 0:00:16]}  Rf6 {[%clk 0:00:17]} 28. Ree3 {[%clk 0:00:10]}  Rxf3 {[%clk 0:00:16]} 29. Rxf3 {[%clk 0:00:10]}  Qd1+ {[%clk 0:00:16]} 30. Qxd1 {[%clk 0:00:10]}  Rxd1+ {[%clk 0:00:17]} 31. Kh2 {[%clk 0:00:10]} 1/2-1/2


[Site "https://www.chess.com"]

[Event "Titled Tuesday Blitz June 1 2021"]
[White "Klimkowski, Jan"]
[Black "Brankovic, Dejan"]
[WhiteFideId "21856222"]
[BlackFideId "921602"]
[WhiteElo "1903"]
[BlackElo "2237"]
[Result "1-0"]
[Round "04"]
[TimeControl "180+1"]
[Date "2021.06.01"]
[WhiteClock "0:00:11"]
[BlackClock "0:00:02"]

1. e4 {[%clk 0:03:00]}  c5 {[%clk 0:02:59]} 2. Nf3 {[%clk 0:03:01]}  g6 {[%clk 0:03:00]} 3. d4 {[%clk 0:03:01]}  cxd4 {[%clk 0:03:00]} 4. Nxd4 {[%clk 0:03:02]}  Bg7 {[%clk 0:03:00]} 5. c4 {[%clk 0:03:03]}  Nc6 {[%clk 0:03:00]} 6. Be3 {[%clk 0:03:03]}  Nf6 {[%clk 0:02:58]} 7. Nc3 {[%clk 0:03:04]}  Ng4 {[%clk 0:02:56]} 8. Qxg4 {[%clk 0:03:01]}  Nxd4 {[%clk 0:02:56]} 9. Qd1 {[%clk 0:03:02]}  e5 {[%clk 0:02:56]} 10. Bd3 {[%clk 0:03:01]}  d6 {[%clk 0:02:56]} 11. O-O {[%clk 0:03:02]}  O-O {[%clk 0:02:57]} 12. Nd5 {[%clk 0:03:02]}  Be6 {[%clk 0:02:57]} 13. f3 {[%clk 0:03:03]}  a6 {[%clk 0:02:54]} 14. Rc1 {[%clk 0:02:55]}  Rc8 {[%clk 0:02:54]} 15. b4 {[%clk 0:02:50]}  f5 {[%clk 0:02:51]} 16. Qd2 {[%clk 0:02:47]}  Bxd5 {[%clk 0:02:40]} 17. cxd5 {[%clk 0:02:45]}  Qd7 {[%clk 0:02:33]} 18. Bxd4 {[%clk 0:02:43]}  exd4 {[%clk 0:02:33]} 19. exf5 {[%clk 0:02:40]}  gxf5 {[%clk 0:02:32]} 20. Rxc8 {[%clk 0:02:40]}  Qxc8 {[%clk 0:02:27]} 21. Re1 {[%clk 0:02:41]}  Qc3 {[%clk 0:02:24]} 22. Re2 {[%clk 0:02:32]}  f4 {[%clk 0:01:55]} 23. Qxc3 {[%clk 0:01:59]}  dxc3 {[%clk 0:01:54]} 24. Re4 {[%clk 0:02:00]}  Rc8 {[%clk 0:01:46]} 25. Bc2 {[%clk 0:01:59]}  Be5 {[%clk 0:01:45]} 26. Kf2 {[%clk 0:01:58]}  Kg7 {[%clk 0:01:39]} 27. g3 {[%clk 0:01:59]}  Rf8 {[%clk 0:01:38]} 28. Rc4 {[%clk 0:01:56]}  Rf7 {[%clk 0:01:38]} 29. g4 {[%clk 0:01:46]}  h6 {[%clk 0:01:35]} 30. Be4 {[%clk 0:01:41]}  Bf6 {[%clk 0:01:33]} 31. Ke2 {[%clk 0:01:37]}  Re7 {[%clk 0:01:29]} 32. Kd3 {[%clk 0:01:37]}  Be5 {[%clk 0:01:24]} 33. Bf5 {[%clk 0:01:32]}  Bf6 {[%clk 0:01:23]} 34. Be6 {[%clk 0:01:32]}  Be5 {[%clk 0:01:20]} 35. Kc2 {[%clk 0:01:29]}  Kf6 {[%clk 0:01:20]} 36. h4 {[%clk 0:01:25]}  Kg6 {[%clk 0:01:14]} 37. Bf5+ {[%clk 0:01:20]}  Kf6 {[%clk 0:01:14]} 38. Rc8 {[%clk 0:01:19]}  Bd4 {[%clk 0:01:11]} 39. Be6 {[%clk 0:01:18]}  Be5 {[%clk 0:01:05]} 40. Rf8+ {[%clk 0:01:16]}  Kg7 {[%clk 0:01:05]} 41. Rf5 {[%clk 0:01:12]}  Rc7 {[%clk 0:01:02]} 42. a3 {[%clk 0:01:11]}  Kg6 {[%clk 0:01:00]} 43. Rf8 {[%clk 0:00:57]}  Kg7 {[%clk 0:01:00]} 44. Rg8+ {[%clk 0:00:56]}  Kh7 {[%clk 0:00:56]} 45. g5 {[%clk 0:00:56]}  hxg5 {[%clk 0:00:54]} 46. hxg5 {[%clk 0:00:57]}  Re7 {[%clk 0:00:53]} 47. g6+ {[%clk 0:00:55]}  Kh6 {[%clk 0:00:53]} 48. Bf5 {[%clk 0:00:55]}  Rg7 {[%clk 0:00:49]} 49. Rf8 {[%clk 0:00:48]}  Kg5 {[%clk 0:00:48]} 50. Be4 {[%clk 0:00:47]}  Rc7 {[%clk 0:00:43]} 51. Bd3 {[%clk 0:00:41]}  Kh6 {[%clk 0:00:43]} 52. Re8 {[%clk 0:00:36]}  Kg7 {[%clk 0:00:42]} 53. Bf5 {[%clk 0:00:33]}  Bf6 {[%clk 0:00:41]} 54. Re4 {[%clk 0:00:30]}  Be5 {[%clk 0:00:38]} 55. Re2 {[%clk 0:00:29]}  Re7 {[%clk 0:00:38]} 56. Rh2 {[%clk 0:00:28]}  Kf6 {[%clk 0:00:38]} 57. Be4 {[%clk 0:00:27]}  Rg7 {[%clk 0:00:39]} 58. Rh5 {[%clk 0:00:23]}  Ke7 {[%clk 0:00:38]} 59. a4 {[%clk 0:00:21]}  Kf6 {[%clk 0:00:38]} 60. Rf5+ {[%clk 0:00:20]}  Ke7 {[%clk 0:00:38]} 61. Rh5 {[%clk 0:00:20]}  Kf6 {[%clk 0:00:38]} 62. Rh6 {[%clk 0:00:20]}  Ke7 {[%clk 0:00:38]} 63. a5 {[%clk 0:00:18]}  Kf6 {[%clk 0:00:37]} 64. Rh5 {[%clk 0:00:16]}  Ke7 {[%clk 0:00:37]} 65. Rf5 {[%clk 0:00:16]}  Ke8 {[%clk 0:00:36]} 66. Bd3 {[%clk 0:00:15]}  Ke7 {[%clk 0:00:36]} 67. Rg5 {[%clk 0:00:14]}  Kf6 {[%clk 0:00:36]} 68. Rg4 {[%clk 0:00:14]}  Ke7 {[%clk 0:00:36]} 69. b5 {[%clk 0:00:15]}  axb5 {[%clk 0:00:34]} 70. Bxb5 {[%clk 0:00:16]}  Kf6 {[%clk 0:00:34]} 71. Bd3 {[%clk 0:00:16]}  Ke7 {[%clk 0:00:34]} 72. Rg5 {[%clk 0:00:16]}  Kf6 {[%clk 0:00:34]} 73. Rf5+ {[%clk 0:00:16]}  Ke7 {[%clk 0:00:35]} 74. Rh5 {[%clk 0:00:17]}  Kf6 {[%clk 0:00:35]} 75. Rh1 {[%clk 0:00:17]}  Ke7 {[%clk 0:00:35]} 76. Rb1 {[%clk 0:00:17]}  Kf6 {[%clk 0:00:35]} 77. Rb6 {[%clk 0:00:17]}  Kg5 {[%clk 0:00:35]} 78. Be4 {[%clk 0:00:16]}  Kh6 {[%clk 0:00:35]} 79. Rb1 {[%clk 0:00:15]}  Kg5 {[%clk 0:00:34]} 80. Kd3 {[%clk 0:00:13]}  Rc7 {[%clk 0:00:10]} 81. Rg1+ {[%clk 0:00:12]}  Kf6 {[%clk 0:00:11]} 82. Kc2 {[%clk 0:00:12]}  Kg7 {[%clk 0:00:11]} 83. Rh1 {[%clk 0:00:11]}  Kf6 {[%clk 0:00:11]} 84. Rh8 {[%clk 0:00:12]}  Rg7 {[%clk 0:00:12]} 85. Rb8 {[%clk 0:00:10]}  Kg5 {[%clk 0:00:12]} 86. Rf8 {[%clk 0:00:10]}  Kh6 {[%clk 0:00:13]} 87. Rf5 {[%clk 0:00:09]}  Re7 {[%clk 0:00:10]} 88. Rf8 {[%clk 0:00:06]}  Kg7 {[%clk 0:00:10]} 89. Rc8 {[%clk 0:00:07]}  Rd7 {[%clk 0:00:10]} 90. Bf5 {[%clk 0:00:05]}  Re7 {[%clk 0:00:10]} 91. Be4 {[%clk 0:00:05]}  Kf6 {[%clk 0:00:10]} 92. Rc4 {[%clk 0:00:06]}  Kg5 {[%clk 0:00:10]} 93. Rb4 {[%clk 0:00:06]}  Kf6 {[%clk 0:00:10]} 94. Rb1 {[%clk 0:00:07]}  Kg7 {[%clk 0:00:11]} 95. Ra1 {[%clk 0:00:07]}  Kf6 {[%clk 0:00:11]} 96. Rg1 {[%clk 0:00:08]}  Kg7 {[%clk 0:00:11]} 97. Rh1 {[%clk 0:00:09]}  Kf6 {[%clk 0:00:11]} 98. Rh5 {[%clk 0:00:09]}  Rg7 {[%clk 0:00:11]} 99. Rh2 {[%clk 0:00:08]}  Ke7 {[%clk 0:00:12]} 100. Rh1 {[%clk 0:00:08]}  Kf6 {[%clk 0:00:12]} 101. Rb1 {[%clk 0:00:07]}  Kg5 {[%clk 0:00:12]} 102. Kd3 {[%clk 0:00:08]}  Kf6 {[%clk 0:00:12]} 103. Rb6 {[%clk 0:00:07]}  Rc7 {[%clk 0:00:12]} 104. Kc2 {[%clk 0:00:07]}  Kg7 {[%clk 0:00:12]} 105. Bd3 {[%clk 0:00:08]}  Kf6 {[%clk 0:00:12]} 106. Rb5 {[%clk 0:00:07]}  Kg7 {[%clk 0:00:12]} 107. Rb4 {[%clk 0:00:08]}  Kf6 {[%clk 0:00:13]} 108. Be4 {[%clk 0:00:07]}  Kg7 {[%clk 0:00:13]} 109. Rb1 {[%clk 0:00:07]}  Kf6 {[%clk 0:00:13]} 110. Rh1 {[%clk 0:00:07]}  Rg7 {[%clk 0:00:14]} 111. Rg1 {[%clk 0:00:07]}  Ke7 {[%clk 0:00:14]} 112. Bf5 {[%clk 0:00:07]}  Kf6 {[%clk 0:00:14]} 113. Be6 {[%clk 0:00:06]}  Rxg6 {[%clk 0:00:13]} 114. Rxg6+ {[%clk 0:00:07]}  Kxg6 {[%clk 0:00:14]} 115. Bc8 {[%clk 0:00:08]}  Bd4 {[%clk 0:00:13]} 116. Bxb7 {[%clk 0:00:08]}  Kf6 {[%clk 0:00:13]} 117. Kd3 {[%clk 0:00:07]}  Ke5 {[%clk 0:00:14]} 118. Bc6 {[%clk 0:00:07]}  c2 {[%clk 0:00:08]} 119. Kxc2 {[%clk 0:00:07]}  Ba7 {[%clk 0:00:09]} 120. Kd3 {[%clk 0:00:07]}  Bc5 {[%clk 0:00:09]} 121. Kc4 {[%clk 0:00:07]}  Ba7 {[%clk 0:00:06]} 122. Bd7 {[%clk 0:00:07]}  Bc5 {[%clk 0:00:04]} 123. Bg4 {[%clk 0:00:07]}  Ba7 {[%clk 0:00:04]} 124. Be6 {[%clk 0:00:07]}  Bc5 {[%clk 0:00:04]} 125. Kb5 {[%clk 0:00:08]}  Kd4 {[%clk 0:00:04]} 126. Kc6 {[%clk 0:00:07]}  Ke3 {[%clk 0:00:04]} 127. Bg4 {[%clk 0:00:08]}  Kd4 {[%clk 0:00:04]} 128. Bf5 {[%clk 0:00:08]}  Ke5 {[%clk 0:00:05]} 129. Be4 {[%clk 0:00:08]}  Kd4 {[%clk 0:00:05]} 130. a6 {[%clk 0:00:09]}  Ke5 {[%clk 0:00:04]} 131. Kb7 {[%clk 0:00:10]}  Bd4 {[%clk 0:00:03]} 132. a7 {[%clk 0:00:11]}  Bxa7 {[%clk 0:00:02]} 133. Kxa7 {[%clk 0:00:11]} 1-0


[Site "https://www.chess.com"]

[Event "Titled Tuesday Blitz June 1 2021"]
[White "Kretov, Evgenij"]
[Black "Martin Carmona, Gaston Manuel"]
[WhiteFideId "4167821"]
[BlackFideId "22284567"]
[WhiteElo "2381"]
[BlackElo "2144"]
[Result "1-0"]
[Round "04"]
[TimeControl "180+1"]
[Date "2021.06.01"]
[WhiteClock "0:00:31"]
[BlackClock "0:00:04"]

1. d4 {[%clk 0:03:00]}  Nf6 {[%clk 0:02:56]} 2. c4 {[%clk 0:03:01]}  e6 {[%clk 0:02:56]} 3. Nc3 {[%clk 0:03:01]}  d5 {[%clk 0:02:57]} 4. cxd5 {[%clk 0:03:00]}  Nxd5 {[%clk 0:02:58]} 5. Nf3 {[%clk 0:02:59]}  c5 {[%clk 0:02:57]} 6. e4 {[%clk 0:02:59]}  Nxc3 {[%clk 0:02:58]} 7. bxc3 {[%clk 0:02:59]}  cxd4 {[%clk 0:02:58]} 8. cxd4 {[%clk 0:03:00]}  Bb4+ {[%clk 0:02:59]} 9. Bd2 {[%clk 0:03:00]}  Bxd2+ {[%clk 0:03:00]} 10. Qxd2 {[%clk 0:03:00]}  O-O {[%clk 0:03:01]} 11. Be2 {[%clk 0:03:01]}  Nd7 {[%clk 0:02:59]} 12. O-O {[%clk 0:03:01]}  b6 {[%clk 0:03:00]} 13. a4 {[%clk 0:02:59]}  Bb7 {[%clk 0:03:00]} 14. Qe3 {[%clk 0:02:57]}  Nf6 {[%clk 0:02:56]} 15. Nd2 {[%clk 0:02:57]}  Rc8 {[%clk 0:02:51]} 16. a5 {[%clk 0:02:50]}  b5 {[%clk 0:02:49]} 17. Bxb5 {[%clk 0:02:48]}  a6 {[%clk 0:02:24]} 18. Be2 {[%clk 0:02:47]}  Qd7 {[%clk 0:02:08]} 19. Nc4 {[%clk 0:02:45]}  Rcd8 {[%clk 0:01:55]} 20. Rfd1 {[%clk 0:02:28]}  Bxe4 {[%clk 0:01:44]} 21. Ne5 {[%clk 0:02:23]}  Qb7 {[%clk 0:01:41]} 22. f3 {[%clk 0:02:23]}  Bd5 {[%clk 0:01:39]} 23. Rab1 {[%clk 0:02:22]}  Qa7 {[%clk 0:01:38]} 24. Rb6 {[%clk 0:02:21]}  Bb7 {[%clk 0:01:27]} 25. Qb3 {[%clk 0:02:20]}  Bd5 {[%clk 0:01:22]} 26. Qa4 {[%clk 0:02:09]}  Rb8 {[%clk 0:01:13]} 27. Rxa6 {[%clk 0:02:06]}  Qc7 {[%clk 0:01:11]} 28. Rd2 {[%clk 0:01:16]}  Rb1+ {[%clk 0:01:06]} 29. Kf2 {[%clk 0:01:11]}  Rfb8 {[%clk 0:01:03]} 30. Qc2 {[%clk 0:01:08]}  Qd8 {[%clk 0:00:48]} 31. Ra7 {[%clk 0:01:02]}  R1b7 {[%clk 0:00:33]} 32. Rxb7 {[%clk 0:01:00]}  Bxb7 {[%clk 0:00:34]} 33. a6 {[%clk 0:00:58]}  Ba8 {[%clk 0:00:33]} 34. a7 {[%clk 0:00:54]}  Rc8 {[%clk 0:00:33]} 35. Qa4 {[%clk 0:00:51]}  Nd5 {[%clk 0:00:27]} 36. g3 {[%clk 0:00:45]}  Nc3 {[%clk 0:00:24]} 37. Qd7 {[%clk 0:00:38]}  Qxd7 {[%clk 0:00:20]} 38. Nxd7 {[%clk 0:00:38]}  Rc7 {[%clk 0:00:21]} 39. Rb2 {[%clk 0:00:38]}  f6 {[%clk 0:00:04]} 40. Rb8+ {[%clk 0:00:36]}  Kf7 {[%clk 0:00:05]} 41. Rxa8 {[%clk 0:00:35]}  Rxd7 {[%clk 0:00:05]} 42. Rf8+ {[%clk 0:00:35]}  Kxf8 {[%clk 0:00:06]} 43. a8=Q+ {[%clk 0:00:35]}  Kf7 {[%clk 0:00:07]} 44. Bc4 {[%clk 0:00:32]}  Ke7 {[%clk 0:00:04]} 45. Qa3+ {[%clk 0:00:31]} 1-0


[Site "https://www.chess.com"]

[Event "Titled Tuesday Blitz June 1 2021"]
[White "Laxman, R.R."]
[Black "Klenburg, Michael"]
[WhiteFideId "5005361"]
[BlackFideId "14102072"]
[WhiteElo "2476"]
[BlackElo "2359"]
[Result "1-0"]
[Round "04"]
[TimeControl "180+1"]
[Date "2021.06.01"]
[WhiteClock "0:01:29"]
[BlackClock "0:00:02"]

1. d4 {[%clk 0:03:00]}  d6 {[%clk 0:02:59]} 2. Nf3 {[%clk 0:03:01]}  Nf6 {[%clk 0:02:59]} 3. Nc3 {[%clk 0:03:02]}  g6 {[%clk 0:02:57]} 4. e4 {[%clk 0:03:02]}  Bg7 {[%clk 0:02:57]} 5. Be2 {[%clk 0:03:02]}  O-O {[%clk 0:02:57]} 6. O-O {[%clk 0:03:03]}  c6 {[%clk 0:02:57]} 7. a4 {[%clk 0:03:02]}  Qc7 {[%clk 0:02:56]} 8. h3 {[%clk 0:03:01]}  Nbd7 {[%clk 0:02:56]} 9. Be3 {[%clk 0:02:59]}  b6 {[%clk 0:02:55]} 10. Nd2 {[%clk 0:02:56]}  a6 {[%clk 0:02:51]} 11. f4 {[%clk 0:02:56]}  Bb7 {[%clk 0:02:51]} 12. e5 {[%clk 0:02:53]}  Nd5 {[%clk 0:02:51]} 13. Nxd5 {[%clk 0:02:53]}  cxd5 {[%clk 0:02:51]} 14. c3 {[%clk 0:02:53]}  e6 {[%clk 0:02:48]} 15. Nf3 {[%clk 0:02:52]}  Rae8 {[%clk 0:02:42]} 16. Bd3 {[%clk 0:02:48]}  f6 {[%clk 0:02:41]} 17. exf6 {[%clk 0:02:43]}  Nxf6 {[%clk 0:02:41]} 18. Qe2 {[%clk 0:02:42]}  Qc8 {[%clk 0:02:38]} 19. Ng5 {[%clk 0:02:39]}  Ne4 {[%clk 0:02:29]} 20. Nxe4 {[%clk 0:02:35]}  dxe4 {[%clk 0:02:29]} 21. Bc4 {[%clk 0:02:36]}  d5 {[%clk 0:02:28]} 22. Bb3 {[%clk 0:02:36]}  Qd7 {[%clk 0:02:18]} 23. g3 {[%clk 0:02:30]}  Rf7 {[%clk 0:02:17]} 24. Kg2 {[%clk 0:02:30]}  Ref8 {[%clk 0:02:17]} 25. h4 {[%clk 0:02:30]}  Bc8 {[%clk 0:02:07]} 26. h5 {[%clk 0:02:29]}  Qe8 {[%clk 0:01:53]} 27. hxg6 {[%clk 0:02:29]}  hxg6 {[%clk 0:01:53]} 28. Rh1 {[%clk 0:02:30]}  Rf5 {[%clk 0:01:51]} 29. Qg4 {[%clk 0:02:27]}  g5 {[%clk 0:01:47]} 30. Qh3 {[%clk 0:02:22]}  Qg6 {[%clk 0:01:45]} 31. fxg5 {[%clk 0:02:23]}  Rf3 {[%clk 0:01:43]} 32. Rae1 {[%clk 0:02:22]}  Qf5 {[%clk 0:01:13]} 33. Qxf5 {[%clk 0:02:15]}  R3xf5 {[%clk 0:01:07]} 34. Bd1 {[%clk 0:02:16]}  e5 {[%clk 0:00:50]} 35. dxe5 {[%clk 0:02:08]}  Bxe5 {[%clk 0:00:48]} 36. Rh6 {[%clk 0:02:01]}  b5 {[%clk 0:00:40]} 37. axb5 {[%clk 0:02:00]}  axb5 {[%clk 0:00:40]} 38. Reh1 {[%clk 0:02:00]}  Bg7 {[%clk 0:00:34]} 39. Rb6 {[%clk 0:01:58]}  Bd7 {[%clk 0:00:17]} 40. Rd6 {[%clk 0:01:56]}  Be8 {[%clk 0:00:16]} 41. Bg4 {[%clk 0:01:55]}  Re5 {[%clk 0:00:13]} 42. Bf4 {[%clk 0:01:53]}  Re7 {[%clk 0:00:13]} 43. g6 {[%clk 0:01:50]}  Rf6 {[%clk 0:00:10]} 44. Rxd5 {[%clk 0:01:46]}  e3 {[%clk 0:00:09]} 45. Bf3 {[%clk 0:01:37]}  Bxg6 {[%clk 0:00:05]} 46. Rd8+ {[%clk 0:01:37]}  Re8 {[%clk 0:00:05]} 47. Bd5+ {[%clk 0:01:36]}  Kf8 {[%clk 0:00:04]} 48. Rxe8+ {[%clk 0:01:36]}  Bxe8 {[%clk 0:00:04]} 49. Bxe3 {[%clk 0:01:37]}  Bf7 {[%clk 0:00:04]} 50. Bc5+ {[%clk 0:01:37]}  Kg8 {[%clk 0:00:04]} 51. Bxf7+ {[%clk 0:01:35]}  Rxf7 {[%clk 0:00:05]} 52. Rd1 {[%clk 0:01:34]}  Rc7 {[%clk 0:00:04]} 53. Rd5 {[%clk 0:01:32]}  Kf7 {[%clk 0:00:03]} 54. Kf3 {[%clk 0:01:32]}  Bf6 {[%clk 0:00:03]} 55. Bd4 {[%clk 0:01:30]}  Be7 {[%clk 0:00:03]} 56. Rxb5 {[%clk 0:01:30]}  Ke6 {[%clk 0:00:03]} 57. Ke4 {[%clk 0:01:30]}  Rc8 {[%clk 0:00:02]} 58. Rb6+ {[%clk 0:01:30]}  Kf7 {[%clk 0:00:02]} 59. g4 {[%clk 0:01:31]}  Rg8 {[%clk 0:00:02]} 60. Kf5 {[%clk 0:01:29]} 1-0


[Site "https://www.chess.com"]